[Event "13th Senioren-Cup Tegernsee 2025"]
[Site "Rottach-Egern"]
[Date "2025.04.03"]
[Round "6.1"]
[White "Hess, Christian"]
[Black "Schneider-Zinner, Harald"]
[Result "0-1"]
[Annotator "RC"]
[ECO "A13"]
[WhiteElo "2168"]
[BlackElo "2327"]
[PlyCount "58"]
[EventDate "2025.03.25"]
[EventType "swiss"]
[EventCountry "GER"]
[SourceTitle "playchess.com"]
[Source "ChessBase"]
[SourceQuality "1"]
[TimeControl "7800+30"]

1. c4 {[%emt 0:00:06]} e6 {[%emt 0:00:13]} 2. g3 {[%emt 0:00:32]} d5 {[%emt 0:00:28]} 3. Bg2 {[%emt 0:00:30]} Nf6 {[%emt 0:00:15]} 4. Nf3 {[%emt 0:00:17]} d4 {[%emt 0:00:15]} 5. O-O {[%emt 0:01:17]} c5 {[%emt 0:02:01]} 6. b4 {[%emt 0:03:39]} cxb4 {[%emt 0:00:11]} 7. a3 {[%emt 0:12:12]} Nc6 {[%emt 0:00:27]} 8. d3 {[%emt 0:05:12]} a5 {[%emt 0:08:36]} 9. axb4 {[%emt 0:10:43]} Bxb4 {[%emt 0:00:14]} 10. Ba3 {[%emt 0:00:05]} O-O {[%emt 0:01:46]} 11. Bxb4 {[%emt 0:05:43]} Nxb4 {[%emt 0:00:57]} 12. Nbd2 {[%emt 0:10:23]} Re8 {[%emt 0:03:29]} 13. Nb3 {[%emt 0:02:49]} e5 {[%emt 0:08:27]} 14. Qb1 {[%emt 0:07:00]} Nc6 {[%emt 0:07:10]} 15. Nc5 {[%emt 0:14:08]} Qc7 {[%emt 0:15:31]} 16. Qb5 {[%emt 0:16:51]} e4 {[%emt 0:29:28]} 17. dxe4 {[%emt 0:09:28]} Nxe4 {[%emt 0:07:09]} 18. Nxe4 {[%emt 0:04:20]} Rxe4 {[%emt 0:00:28]} 19. Rfd1 {[%emt 0:03:22]} Bd7 {[%emt 0:03:27]} 20. Qh5 {[%emt 0:07:24]} Bg4 {[%emt 0:02:10]} 21. Qc5 {[%emt 0:03:49]} Rd8 {[%emt 0:16:08]} 22. Rxd4 {[%emt 0:10:56]} Rexd4 {[%emt 0:03:38]} 23. Nxd4 {[%emt 0:00:05]} Rxd4 {[%emt 0:01:05]} 24. Bxc6 {[%emt 0:00:15]} Rd6 {[%emt 0:03:22]} 25. Rxa5 {[%emt 0:08:13]} Rxc6 {[%emt 0:02:49]} 26. Ra8+ {[%emt 0:00:09]} Bc8 {[%emt 0:00:17]} 27. Qe3 {[%emt 0:00:14]} Re6 {[%emt 0:01:31]} 28. Qf4 {[%emt 0:00:06]} Qd7 {[%emt 0:02:36]} 29. Qd4 {[%emt 0:01:08]} Re8 {[%emt 0:01:32]} 0-1

[Event "13th Senioren-Cup Tegernsee 2025"]
[Site "Rottach-Egern"]
[Date "2025.04.03"]
[Round "6.3"]
[White "Heinbuch, Detlef Ulrich"]
[Black "Mueller, Matthias-Michael"]
[Result "1-0"]
[Annotator "RC"]
[ECO "E18"]
[WhiteElo "2263"]
[BlackElo "2307"]
[PlyCount "101"]
[EventDate "2025.03.25"]
[EventType "swiss"]
[EventCountry "GER"]
[SourceTitle "playchess.com"]
[Source "ChessBase"]
[SourceQuality "1"]
[TimeControl "7800+30"]

1. c4 {[%emt 0:00:03]} e6 {[%emt 0:00:16]} 2. g3 {[%emt 0:00:11]} d5 {[%emt 0:00:21]} 3. Bg2 {[%emt 0:00:16]} Nf6 {[%emt 0:00:27]} 4. Nf3 {[%emt 0:00:21]} Be7 {[%emt 0:00:39]} 5. O-O {[%emt 0:00:49]} O-O {[%emt 0:01:31]} 6. d4 {[%emt 0:01:28]} b6 {[%emt 0:02:33]} 7. Ne5 {[%emt 0:06:23]} Bb7 {[%emt 0:00:31]} 8. Nc3 {[%emt 0:01:15]} Na6 {[%emt 0:05:33]} 9. cxd5 {[%emt 0:04:47]} Nxd5 {[%emt 0:04:04]} 10. e4 {[%emt 0:06:01]} Nxc3 {[%emt 0:00:54]} 11. bxc3 {[%emt 0:00:05]} c6 {[%emt 0:05:50]} 12. Bb2 {[%emt 0:08:18]} Nc7 {[%emt 0:09:35]} 13. Qa4 {[%emt 0:10:15]} Qe8 {[%emt 0:15:54]} 14. Rfd1 {[%emt 0:10:25]} f6 {[%emt 1:29:22]} 15. Nd3 {[%emt 0:07:38]} Rf7 {[%emt 0:00:00]} 16. Qb3 {[%emt 0:02:46]} Rd8 {[%emt 0:00:00]} 17. a4 {[%emt 0:05:40]} Bf8 {[%emt 0:00:00]} 18. e5 {[%emt 0:08:53]} f5 {[%emt 0:00:00]} 19. h4 {[%emt 0:04:02]} h6 {[%emt 0:00:00]} 20. h5 {[%emt 0:02:41]} Rfd7 {[%emt 0:00:00]} 21. Bf3 {[%emt 0:02:15]} Rb8 {[%emt 0:00:00]} 22. c4 {[%emt 0:09:10]} b5 {[%emt 0:00:00]} 23. Nf4 {[%emt 0:11:04]} bxc4 {[%emt 0:00:00]} 24. Qxc4 {[%emt 0:00:03]} Nd5 {[%emt 0:00:00]} 25. Ba3 {[%emt 0:13:12]} Bxa3 {[%emt 0:00:00]} 26. Rxa3 {[%emt 0:00:03]} Rbd8 {[%emt 0:00:00]} 27. Bxd5 {[%emt 0:11:03]} cxd5 {[%emt 0:00:00]} 28. Qc5 {[%emt 0:00:01]} Rc8 {[%emt 0:00:00]} 29. Qxa7 {[%emt 0:01:24]} Qe7 {[%emt 0:00:00]} 30. Raa1 {[%emt 0:02:15]} Ra8 {[%emt 0:00:00]} 31. Qb6 {[%emt 0:00:10]} Ra6 {[%emt 0:00:00]} 32. Qb5 {[%emt 0:00:22]} Rc7 {[%emt 0:00:07]} 33. Rdc1 {[%emt 0:02:40]} Kf7 {[%emt 0:01:07]} 34. Kg2 {[%emt 0:01:11]} Qd7 {[%emt 0:02:33]} 35. Rxc7 {[%emt 0:01:07]} Qxc7 {[%emt 0:00:03]} 36. Rc1 {[%emt 0:00:06]} Rc6 {[%emt 0:00:29]} 37. Rxc6 {[%emt 0:00:08]} Qxc6 {[%emt 0:00:34]} 38. Qxc6 {[%emt 0:02:45]} Bxc6 {[%emt 0:00:02]} 39. a5 {[%emt 0:00:04]} Bb5 {[%emt 0:00:14]} 40. Kf3 {[%emt 0:00:15]} Ke7 {[%emt 0:00:18]} 41. Ke3 {[%emt 0:00:04]} Kd7 {[%emt 0:00:29]} 42. Kd2 {[%emt 0:00:05]} Ba6 {[%emt 0:00:12]} 43. Kc3 {[%emt 0:00:08]} Bc8 {[%emt 0:00:20]} 44. Kb4 {[%emt 0:00:13]} Kc6 {[%emt 0:00:13]} 45. Nd3 {[%emt 0:02:44]} Bd7 {[%emt 0:02:12]} 46. Nc5 {[%emt 0:00:19]} Be8 {[%emt 0:00:34]} 47. Nxe6 {[%emt 0:01:00]} Bxh5 {[%emt 0:00:32]} 48. Nxg7 {[%emt 0:00:05]} Bg4 {[%emt 0:01:51]} 49. f4 {[%emt 0:00:59]} h5 {[%emt 0:00:49]} 50. e6 {[%emt 0:01:46]} Kd6 {[%emt 0:00:31]} 51. a6 {[%emt 0:00:11]} 1-0

[Event "13th Senioren-Cup Tegernsee 2025"]
[Site "Rottach-Egern"]
[Date "2025.04.03"]
[Round "6.4"]
[White "Pollmann, Sascha"]
[Black "Cordts, Ingo"]
[Result "1/2-1/2"]
[Annotator "RC"]
[ECO "D02"]
[WhiteElo "2071"]
[BlackElo "2151"]
[PlyCount "26"]
[EventDate "2025.03.25"]
[EventType "swiss"]
[EventCountry "GER"]
[SourceTitle "playchess.com"]
[Source "ChessBase"]
[SourceQuality "1"]
[TimeControl "7800+30"]

1. Nf3 {[%emt 0:00:03]} d5 {[%emt 0:00:11]} 2. g3 {[%emt 0:00:11]} c5 {[%emt 0:00:33]} 3. Bg2 {[%emt 0:00:30]} Nf6 {[%emt 0:00:47]} 4. O-O {[%emt 0:00:33]} e6 {[%emt 0:00:28]} 5. d4 {[%emt 0:02:26]} cxd4 {[%emt 0:01:52]} 6. Nxd4 {[%emt 0:00:08]} e5 {[%emt 0:00:28]} 7. Nb3 {[%emt 0:00:07]} Be6 {[%emt 0:00:44]} 8. Bg5 {[%emt 0:00:22]} Nbd7 {[%emt 0:01:13]} 9. e4 {[%emt 0:01:35]} dxe4 {[%emt 0:07:23]} 10. Nc3 {[%emt 0:00:32]} Qc7 {[%emt 0:08:56]} 11. Nxe4 {[%emt 0:02:29]} Nd5 {[%emt 0:11:01]} 12. Nec5 {[%emt 0:04:18]} Nxc5 {[%emt 0:09:12]} 13. Bxd5 {[%emt 0:00:17]} Bxd5 {[%emt 0:05:55]} 1/2-1/2

[Event "13th Senioren-Cup Tegernsee 2025"]
[Site "Rottach-Egern"]
[Date "2025.04.03"]
[Round "6.5"]
[White "Marentini, Marcel"]
[Black "Lindam, Ingo"]
[Result "1/2-1/2"]
[Annotator "RC"]
[ECO "E90"]
[WhiteElo "2036"]
[BlackElo "2151"]
[PlyCount "26"]
[EventDate "2025.03.25"]
[EventType "swiss"]
[EventCountry "GER"]
[SourceTitle "playchess.com"]
[Source "ChessBase"]
[SourceQuality "1"]
[TimeControl "7800+30"]

1. Nf3 {[%emt 0:00:11]} Nf6 {[%emt 0:00:28]} 2. c4 {[%emt 0:00:11]} g6 {[%emt 0:00:51]} 3. Nc3 {[%emt 0:00:43]} Bg7 {[%emt 0:00:12]} 4. e4 {[%emt 0:00:09]} d6 {[%emt 0:00:02]} 5. d4 {[%emt 0:00:12]} O-O {[%emt 0:00:16]} 6. h3 {[%emt 0:01:23]} e5 {[%emt 0:03:17]} 7. d5 {[%emt 0:00:17]} a5 {[%emt 0:00:54]} 8. Be3 {[%emt 0:02:46]} Na6 {[%emt 0:00:17]} 9. g4 {[%emt 0:00:08]} Nd7 {[%emt 0:00:29]} 10. a3 {[%emt 0:00:18]} Nb6 {[%emt 0:06:48]} 11. Rg1 {[%emt 0:00:09]} Bd7 {[%emt 0:08:47]} 12. h4 {[%emt 0:01:47]} Nc5 {[%emt 0:11:59]} 13. b3 {[%emt 0:00:15]} c6 {[%emt 0:11:05]} 1/2-1/2

[Event "13th Senioren-Cup Tegernsee 2025"]
[Site "Rottach-Egern"]
[Date "2025.04.03"]
[Round "6.6"]
[White "Scheckenbach, Franz"]
[Black "Loew, Gerald"]
[Result "0-1"]
[Annotator "RC"]
[ECO "B01"]
[WhiteElo "2045"]
[BlackElo "2175"]
[PlyCount "100"]
[EventDate "2025.03.25"]
[EventType "swiss"]
[EventCountry "GER"]
[SourceTitle "playchess.com"]
[Source "ChessBase"]
[SourceQuality "1"]
[TimeControl "7800+30"]

1. e4 {[%emt 0:00:06]} d5 {[%emt 0:00:21]} 2. exd5 {[%emt 0:00:20]} Nf6 {[%emt 0:00:09]} 3. Nf3 {[%emt 0:00:22]} Nxd5 {[%emt 0:00:16]} 4. d4 {[%emt 0:00:53]} g6 {[%emt 0:00:23]} 5. Be2 {[%emt 0:02:08]} Bg7 {[%emt 0:00:20]} 6. O-O {[%emt 0:00:47]} O-O {[%emt 0:00:13]} 7. c4 {[%emt 0:01:46]} Nb6 {[%emt 0:02:01]} 8. h3 {[%emt 0:03:12]} c5 {[%emt 0:03:36]} 9. d5 {[%emt 0:12:53]} e6 {[%emt 0:11:05]} 10. Nc3 {[%emt 0:01:48]} exd5 {[%emt 0:01:57]} 11. Nxd5 {[%emt 0:03:09]} Be6 {[%emt 0:07:35]} 12. Bg5 {[%emt 0:17:16]} f6 {[%emt 0:06:40]} 13. Be3 {[%emt 0:06:06]} Nxd5 {[%emt 0:08:04]} 14. cxd5 {[%emt 0:00:08]} Qxd5 {[%emt 0:00:18]} 15. Qxd5 {[%emt 0:01:06]} Bxd5 {[%emt 0:00:08]} 16. Rfd1 {[%emt 0:03:21]} Bf7 {[%emt 0:05:20]} 17. Bxc5 {[%emt 0:01:01]} Re8 {[%emt 0:01:10]} 18. Bb5 {[%emt 0:03:40]} Nc6 {[%emt 0:10:08]} 19. Rd2 {[%emt 0:34:13]} a6 {[%emt 0:08:32]} 20. Ba4 {[%emt 0:05:59]} Rad8 {[%emt 0:04:02]} 21. Nd4 {[%emt 0:10:40]} Nxd4 {[%emt 0:23:36]} 22. Rxd4 {[%emt 0:01:56]} Rxd4 {[%emt 0:01:49]} 23. Bxd4 {[%emt 0:00:06]} Re4 {[%emt 0:01:04]} 24. Rd1 {[%emt 0:00:54]} Bxa2 {[%emt 0:03:26]} 25. Bc2 {[%emt 0:01:53]} Re2 {[%emt 0:00:47]} 26. Bd3 {[%emt 0:01:17]} Re7 {[%emt 0:04:09]} 27. Bc3 {[%emt 0:01:06]} Bb3 {[%emt 0:00:46]} 28. Ra1 {[%emt 0:04:13]} f5 {[%emt 0:01:24]} 29. Bxg7 {[%emt 0:02:49]} Kxg7 {[%emt 0:00:17]} 30. Ra3 {[%emt 0:02:46]} Re1+ {[%emt 0:03:34]} 31. Kh2 {[%emt 0:00:10]} Bd5 {[%emt 0:00:18]} 32. Kg3 {[%emt 0:03:46]} Rd1 {[%emt 0:05:44]} 33. Rc3 {[%emt 0:00:33]} Rd2 {[%emt 0:01:20]} 34. b4 {[%emt 0:04:38]} Rb2 {[%emt 0:01:32]} 35. Bc4 {[%emt 0:00:28]} Bxc4 {[%emt 0:05:41]} 36. Rxc4 {[%emt 0:00:05]} Kf6 {[%emt 0:00:14]} 37. f4 {[%emt 0:01:53]} Ke6 {[%emt 0:02:09]} 38. Rd4 {[%emt 0:00:53]} h5 {[%emt 0:04:20]} 39. Kh4 {[%emt 0:05:10]} Re2 {[%emt 0:07:58]} 40. b5 {[%emt 0:01:47]} Re4 {[%emt 0:00:39]} 41. Rd2 {[%emt 0:00:13]} axb5 {[%emt 0:01:39]} 42. Kg5 {[%emt 0:00:22]} b4 {[%emt 0:00:40]} 43. Kxg6 {[%emt 0:00:23]} Rxf4 {[%emt 0:01:47]} 44. Kxh5 {[%emt 0:00:13]} b3 {[%emt 0:00:19]} 45. Kg5 {[%emt 0:00:33]} Rb4 {[%emt 0:00:52]} 46. Re2+ {[%emt 0:00:04]} Kd5 {[%emt 0:00:23]} 47. Rb2 {[%emt 0:00:57]} Kd4 {[%emt 0:00:50]} 48. h4 {[%emt 0:01:19]} Kc3 {[%emt 0:00:13]} 49. Rb1 {[%emt 0:00:02]} Rg4+ {[%emt 0:00:13]} 50. Kxf5 {[%emt 0:00:08]} Rxg2 {[%emt 0:00:04]} 0-1

[Event "13th Senioren-Cup Tegernsee 2025"]
[Site "Rottach-Egern"]
[Date "2025.04.03"]
[Round "6.7"]
[White "Schwarz, Arnd-Ruediger"]
[Black "Moritz, Hartmut"]
[Result "1-0"]
[Annotator "RC"]
[ECO "E01"]
[WhiteElo "2120"]
[BlackElo "2001"]
[PlyCount "37"]
[EventDate "2025.03.25"]
[EventType "swiss"]
[EventCountry "GER"]
[SourceTitle "playchess.com"]
[Source "ChessBase"]
[SourceQuality "1"]
[TimeControl "7800+30"]

1. d4 {[%emt 0:00:04]} e6 {[%emt 0:00:37]} 2. Nf3 {[%emt 0:00:25]} d5 {[%emt 0:00:39]} 3. c4 {[%emt 0:00:18]} Nf6 {[%emt 0:00:32]} 4. g3 {[%emt 0:00:09]} c6 {[%emt 0:00:26]} 5. Qc2 {[%emt 0:00:23]} Nbd7 {[%emt 0:01:17]} 6. Nbd2 {[%emt 0:00:12]} Bd6 {[%emt 0:01:25]} 7. Bg2 {[%emt 0:00:18]} O-O {[%emt 0:01:29]} 8. O-O {[%emt 0:00:09]} e5 {[%emt 0:02:21]} 9. dxe5 {[%emt 0:00:30]} Nxe5 {[%emt 0:00:30]} 10. Nxe5 {[%emt 0:00:51]} Bxe5 {[%emt 0:00:53]} 11. cxd5 {[%emt 0:00:49]} Nxd5 {[%emt 0:00:44]} 12. Nc4 {[%emt 0:00:42]} Qf6 {[%emt 0:03:00]} 13. e4 {[%emt 0:03:20]} Nb6 {[%emt 0:12:17]} 14. Nxe5 {[%emt 0:00:16]} Qxe5 {[%emt 0:00:03]} 15. Re1 {[%emt 0:06:53]} Qh5 {[%emt 0:03:34]} 16. Be3 {[%emt 0:04:42]} Bh3 {[%emt 0:01:27]} 17. Qc5 {[%emt 0:00:30]} Qg4 {[%emt 0:00:30]} 18. f3 {[%emt 0:00:30]} Qe6 {[%emt 0:00:30]} 19. Bh1 {[%emt 0:16:26]} 1-0

[Event "13th Senioren-Cup Tegernsee 2025"]
[Site "Rottach-Egern"]
[Date "2025.04.03"]
[Round "6.8"]
[White "Schrems, Hermann"]
[Black "Kutschenko, Roland"]
[Result "1/2-1/2"]
[Annotator "NA RC"]
[ECO "A54"]
[WhiteElo "2114"]
[BlackElo "1994"]
[PlyCount "121"]
[EventDate "2025.03.25"]
[EventType "swiss"]
[EventCountry "GER"]
[SourceTitle "playchess.com"]
[Source "ChessBase"]
[SourceQuality "1"]
[TimeControl "7800+30"]

1. d4 {[%emt 0:00:06]} Nf6 {[%emt 0:00:07]} 2. Nf3 {[%emt 0:00:06]} d6 {[%emt 0:00:49]} 3. g3 {[%emt 0:00:05]} c6 {[%emt 0:00:45]} 4. Bg2 {[%emt 0:00:05]} Qc7 {[%emt 0:01:06]} 5. O-O {[%emt 0:01:27]} Nbd7 {[%emt 0:02:27]} 6. c4 {[%emt 0:00:43]} e5 {[%emt 0:01:49]} 7. Nc3 {[%emt 0:00:08]} a6 {[%emt 0:01:13]} 8. Qc2 {[%emt 0:04:57]} Be7 {[%emt 0:00:44]} 9. b3 {[%emt 0:00:46]} O-O {[%emt 0:01:15]} 10. Bb2 {[%emt 0:00:45]} Re8 {[%emt 0:04:02]} 11. Rad1 {[%emt 0:03:48]} Bf8 {[%emt 0:09:23]} 12. h3 {[%emt 0:04:46]} Rb8 {[%emt 0:03:37]} 13. dxe5 {[%emt 0:02:44]} dxe5 {[%emt 0:02:26]} 14. e4 {[%emt 0:11:41]} b5 {[%emt 0:17:58]} 15. cxb5 {[%emt 0:00:33]} cxb5 {[%emt 0:04:09]} 16. Qe2 {[%emt 0:00:11]} Bb7 {[%emt 0:08:22]} 17. Nh4 {[%emt 0:03:32]} b4 {[%emt 0:04:15]} 18. Nd5 {[%emt 0:00:13]} Nxd5 {[%emt 0:03:00]} 19. exd5 {[%emt 0:00:06]} g6 {[%emt 0:02:00]} 20. Rd2 {[%emt 0:09:31]} Qd6 {[%emt 0:01:42]} 21. Rfd1 {[%emt 0:01:49]} Bg7 {[%emt 0:01:59]} 22. Rc2 {[%emt 0:00:31]} e4 {[%emt 0:10:12]} 23. Bxg7 {[%emt 0:01:21]} Kxg7 {[%emt 0:00:40]} 24. Qg4 {[%emt 0:01:22]} Kh8 {[%emt 0:10:02]} 25. Qf4 {[%emt 0:04:37]} Qxf4 {[%emt 0:00:51]} 26. gxf4 {[%emt 0:00:01]} Rbc8 {[%emt 0:01:44]} 27. Rxc8 {[%emt 0:00:13]} Bxc8 {[%emt 0:00:26]} 28. Bf1 {[%emt 0:00:09]} Bb7 {[%emt 0:09:28]} 29. Ng2 {[%emt 0:00:09]} f5 {[%emt 0:00:44]} 30. Ne3 {[%emt 0:00:05]} Kg7 {[%emt 0:03:36]} 31. Rc1 {[%emt 0:05:11]} Rc8 {[%emt 0:01:42]} 32. Rxc8 {[%emt 0:07:23]} Bxc8 {[%emt 0:00:02]} 33. Nc2 {[%emt 0:04:12]} a5 {[%emt 0:02:00]} 34. f3 {[%emt 0:02:27]} exf3 {[%emt 0:04:46]} 35. Kf2 {[%emt 0:01:10]} Kf6 {[%emt 0:00:27]} 36. Kxf3 {[%emt 0:00:14]} Bb7 {[%emt 0:01:20]} 37. Bc4 {[%emt 0:05:00]} Nb6 {[%emt 0:01:25]} 38. Ne3 {[%emt 0:03:59]} Ke7 {[%emt 0:01:05]} 39. Ke2 {[%emt 0:00:57]} Kd6 {[%emt 0:01:04]} 40. Kd3 {[%emt 0:00:40]} Bxd5 {[%emt 0:16:10]} 41. Kd4 {[%emt 0:01:49]} Bxc4 {[%emt 0:02:00]} 42. bxc4 {[%emt 0:00:01]} Nd7 {[%emt 0:00:56]} 43. c5+ {[%emt 0:01:06]} Nxc5 {[%emt 0:01:48]} 44. Nc4+ {[%emt 0:00:06]} Kc6 {[%emt 0:00:24]} 45. Nxa5+ {[%emt 0:00:05]} Kb5 {[%emt 0:00:33]} 46. Nb3 {[%emt 0:00:36]} Ne4 {[%emt 0:00:23]} 47. Nc1 {[%emt 0:02:06]} Ka4 {[%emt 0:02:42]} 48. Kc4 {[%emt 0:02:33]} Nc3 {[%emt 0:01:02]} 49. Kc5 {[%emt 0:00:33]} h6 {[%emt 0:00:28]} 50. h4 {[%emt 0:00:02]} Ka3 {[%emt 0:00:53]} 51. Kc4 {[%emt 0:00:01]} Nxa2 {[%emt 0:01:33]} 52. Nxa2 {[%emt 0:00:07]} b3 {[%emt 0:00:17]} 53. Nc3 {[%emt 0:00:07]} Kb2 {[%emt 0:00:32]} 54. Kd3 {[%emt 0:03:39]} Kc1 {[%emt 0:00:49]} 55. Na4 {[%emt 0:00:22]} Kd1 {[%emt 0:01:26]} 56. Nb2+ {[%emt 0:00:16]} Ke1 {[%emt 0:00:25]} 57. Ke3 {[%emt 0:00:25]} Kf1 {[%emt 0:00:12]} 58. Kf3 {[%emt 0:00:23]} Kg1 {[%emt 0:00:30]} 59. Kg3 {[%emt 0:00:02]} h5 {[%emt 0:00:50]} 60. Nd3 {[%emt 0:00:52]} Kh1 {[%emt 0:00:24]} 61. Kh3 {[%emt 0:06:05]} 1/2-1/2

[Event "13th Senioren-Cup Tegernsee 2025"]
[Site "Rottach-Egern"]
[Date "2025.04.03"]
[Round "6.9"]
[White "Templin, Klaus Dieter"]
[Black "Kannenberg, Karl-Heinz"]
[Result "0-1"]
[Annotator "NA RC"]
[ECO "D17"]
[WhiteElo "2039"]
[BlackElo "2113"]
[PlyCount "54"]
[EventDate "2025.03.25"]
[EventType "swiss"]
[EventCountry "GER"]
[SourceTitle "playchess.com"]
[Source "ChessBase"]
[SourceQuality "1"]
[TimeControl "7800+30"]

1. d4 {[%emt 0:00:08]} d5 {[%emt 0:00:07]} 2. Nf3 {[%emt 0:00:50]} Nf6 {[%emt 0:00:10]} 3. c4 {[%emt 0:00:34]} c6 {[%emt 0:00:07]} 4. Nc3 {[%emt 0:00:44]} dxc4 {[%emt 0:00:10]} 5. a4 {[%emt 0:00:41]} Bf5 {[%emt 0:00:17]} 6. Ne5 {[%emt 0:04:39]} Nbd7 {[%emt 0:00:45]} 7. Nxc4 {[%emt 0:01:08]} Nb6 {[%emt 0:00:13]} 8. Ne3 {[%emt 0:09:14]} Bg6 {[%emt 0:01:16]} 9. g3 {[%emt 0:00:08]} e6 {[%emt 0:04:09]} 10. Bg2 {[%emt 0:00:20]} Nbd5 {[%emt 0:12:35]} 11. O-O {[%emt 0:08:28]} Be7 {[%emt 0:02:18]} 12. Nc4 {[%emt 0:04:51]} O-O {[%emt 0:11:24]} 13. Re1 {[%emt 0:03:25]} Nb4 {[%emt 0:13:40]} 14. e4 {[%emt 0:07:41]} c5 {[%emt 0:02:27]} 15. dxc5 {[%emt 0:01:46]} Nd3 {[%emt 0:13:23]} 16. Rf1 {[%emt 0:27:56]} Nxc5 {[%emt 0:08:42]} 17. e5 {[%emt 0:07:24]} Nfe4 {[%emt 0:16:16]} 18. Nxe4 {[%emt 0:08:44]} Nxe4 {[%emt 0:05:50]} 19. Be3 {[%emt 0:05:57]} Rc8 {[%emt 0:04:16]} 20. Rc1 {[%emt 0:04:12]} b6 {[%emt 0:04:29]} 21. h4 {[%emt 0:01:54]} h6 {[%emt 0:02:45]} 22. Qe2 {[%emt 0:09:31]} Nc5 {[%emt 0:00:43]} 23. Bxc5 {[%emt 0:00:17]} Rxc5 {[%emt 0:01:16]} 24. Rfd1 {[%emt 0:01:38]} Qc8 {[%emt 0:04:52]} 25. b4 {[%emt 0:00:48]} Rc7 {[%emt 0:00:31]} 26. Qf1 {[%emt 0:09:01]} Bxb4 {[%emt 0:05:11]} 27. Nxb6 {[%emt 0:00:47]} axb6 {[%emt 0:00:30]} 0-1

[Event "13th Senioren-Cup Tegernsee 2025"]
[Site "Rottach-Egern"]
[Date "2025.04.03"]
[Round "6.10"]
[White "Mareck, Sascha"]
[Black "Wiendieck, Joerg"]
[Result "1-0"]
[Annotator "RC"]
[ECO "B60"]
[WhiteElo "2112"]
[BlackElo "1992"]
[PlyCount "63"]
[EventDate "2025.03.25"]
[EventType "swiss"]
[EventCountry "GER"]
[SourceTitle "playchess.com"]
[Source "ChessBase"]
[SourceQuality "1"]
[TimeControl "7800+30"]

1. e4 {[%emt 0:00:04]} c5 {[%emt 0:00:11]} 2. Nf3 {[%emt 0:00:07]} Nc6 {[%emt 0:00:12]} 3. d4 {[%emt 0:00:09]} cxd4 {[%emt 0:00:24]} 4. Nxd4 {[%emt 0:00:06]} Nf6 {[%emt 0:01:43]} 5. Nc3 {[%emt 0:00:10]} d6 {[%emt 0:01:41]} 6. Bc4 {[%emt 0:04:17]} Bd7 {[%emt 0:06:01]} 7. Bg5 {[%emt 0:05:01]} Qa5 {[%emt 0:06:50]} 8. Bxf6 {[%emt 0:01:05]} gxf6 {[%emt 0:01:16]} 9. Nb3 {[%emt 2:04:01]} Qg5 {[%emt 0:05:00]} 10. O-O {[%emt 0:00:00]} Bh3 {[%emt 0:07:49]} 11. Qf3 {[%emt 0:00:00]} Be6 {[%emt 0:03:57]} 12. Bxe6 {[%emt 0:00:00]} fxe6 {[%emt 0:00:26]} 13. Qh3 {[%emt 0:00:00]} f5 {[%emt 0:04:10]} 14. f4 {[%emt 0:00:00]} Qg4 {[%emt 0:07:48]} 15. Qe3 {[%emt 0:00:00]} Rg8 {[%emt 0:04:33]} 16. Rf2 {[%emt 0:00:00]} O-O-O {[%emt 0:01:56]} 17. Nb5 {[%emt 0:00:00]} Bh6 {[%emt 0:18:40]} 18. exf5 {[%emt 0:00:00]} e5 {[%emt 0:07:38]} 19. Nxa7+ {[%emt 0:00:00]} Nxa7 {[%emt 0:01:40]} 20. Qxa7 {[%emt 0:00:00]} Kc7 {[%emt 0:00:29]} 21. Na5 {[%emt 0:00:00]} Rb8 {[%emt 0:01:18]} 22. Nc4 {[%emt 0:00:00]} Bxf4 {[%emt 0:03:49]} 23. Qb6+ {[%emt 0:00:00]} Kd7 {[%emt 0:07:53]} 24. Qb5+ {[%emt 0:00:00]} Kc7 {[%emt 0:01:38]} 25. Nb6 {[%emt 0:00:00]} Qxf5 {[%emt 0:03:00]} 26. Nd5+ {[%emt 0:00:00]} Kd8 {[%emt 0:00:09]} 27. Qb6+ {[%emt 0:00:00]} Kd7 {[%emt 0:04:01]} 28. Qc7+ {[%emt 0:00:00]} Ke6 {[%emt 0:00:19]} 29. Nxf4+ {[%emt 0:00:00]} exf4 {[%emt 0:00:41]} 30. Re1+ {[%emt 0:00:00]} Kf6 {[%emt 0:00:27]} 31. Qxe7+ {[%emt 0:00:00]} Kg6 {[%emt 0:00:09]} 32. Qxd6+ {[%emt 0:00:00]} 1-0